Cogmind - Beta 15 @@@ ROGUE MODE // 2025.05.30 @ 18:38:00 Player: Btuck Result: Self-destructed Performance ------------- Evolutions (2) 1000 Regions Visited (3) 600 Robots Destroyed (60) 300 Value Destroyed (1599) 1599 Prototype IDs (9) 180 Alien Tech Used (0) 0 Bonus (0) 0 TOTAL SCORE: 3679 Bonus ------- None Cogmind --------- Core Integrity 297/550 Matter 235/300 Energy 89/100 System Corruption 0% Temperature Cool (9) Movement Treading (160) Location -8/Materials Parts ------- > --- POWER (1) -------- (None) > --- PROPULSION (2) --- Light Treads > --- UTILITY (6) ------ Coolant Injector Medium Storage Unit Improved Sensor Array Improved Signal Interpreter > --- WEAPON (2) ------- (None) > --- INVENTORY (10) --- Light Treads Light Treads Cooling System Advanced Beam Cannon Assault Cannon Peak State ------------ > --- POWER ------------ Heavy Deuterium Engine > --- PROPULSION ------- Light Treads Light Treads > --- UTILITY ---------- Coolant Injector Medium Storage Unit Improved Sensor Array Improved Signal Interpreter Heavy Armor Plating > --- WEAPON ----------- Assault Cannon Assault Cannon > --- INVENTORY -------- Heavy Deuterium Engine Light Treads Light Treads Cooling System Structural Scanner Improved Medium Laser Improved Medium Laser Advanced Beam Cannon Advanced Beam Cannon Rocket Launcher [Rating: 32] Favorites ----------- Power Light Ion Engine Engine Light Ion Engine Propulsion Light Treads Treads Light Treads Flight Unit Improved Flight Unit Utility Medium Storage Unit Device Structural Scanner Storage Medium Storage Unit Processor Improved Signal Interpreter Protection Light Armor Plating Weapon Advanced Beam Cannon Energy Gun Improved Medium Laser Energy Cannon Advanced Beam Cannon Ballistic Gun Assault Rifle Ballistic Cannon Assault Cannon Launcher Rocket Launcher Build | -11 -10 -9 -8 ------- Run | Yrd Mat Mat Mat Slots Evolved 4 | . . 2 2 Power . | . . . . Propulsion . | . . . . Utility 4 | . . 2 2 Weapon . | . . . . Parts Attached 34 | 7 2 14 11 Power 5 | 1 . 2 2 Engine 5 | 1 . 2 2 Core . | . . . . Reactor . | . . . . Propulsion 8 | 2 . 6 . Treads 7 | 2 . 5 . Leg . | . . . . Wheel . | . . . . Hover . | . . . . Flight 1 | . . 1 . Utility 10 | 2 2 2 4 Device 6 | 2 . 2 2 Storage 1 | . 1 . . Processor 1 | . . . 1 Hackware . | . . . . Protection 2 | . 1 . 1 Artifact . | . . . . Weapon 11 | 2 . 4 5 Energy Gun 3 | . . 1 2 Energy Cannon 3 | . . 2 1 Ballistic Gun 2 | 2 . . . Ballistic Cannon 2 | . . . 2 Launcher 1 | . . 1 . Special Weapon . | . . . . Impact Weapon . | . . . . Slashing Weapon . | . . . . Piercing Weapon . | . . . . Special Melee Weapon . | . . . . Unidentified Prototypes 5 | . . 4 1 Parts Lost 12 | . 1 2 9 Power 2 | . . 1 1 Propulsion 2 | . . 1 1 Utility 3 | . 1 . 2 Weapon 5 | . . . 5 Highest Loss Streak 7 | . 1 2 7 To Critical Strikes . | . . . . Average Backups 8 | . 3 9 9 Power . | . 1 . . Propulsion 1 | . 1 2 2 Utility . | . . . 1 Weapon 4 | . 1 5 5 Tool/Special . | . . . . Unused Backups 11 | . . 5 6 Power 2 | . . 1 1 Propulsion 2 | . . . 2 Utility 1 | . . . 1 Weapon 6 | . . 4 2 Tool/Special . | . . . . Average Slot Usage (%) 96 | . 96 97 93 Engine 10 | . 14 11 8 Treads 21 | . 28 21 17 Device 19 | . 14 19 23 Storage 9 | . 4 11 9 Processor 2 | . . . 8 Protection 9 | . 6 11 8 Energy Cannon 12 | . . 18 3 Ballistic Gun 5 | . 28 3 . Ballistic Cannon 3 | . . . 14 Peak Build Rating 32 | 9 9 19 32 Average Rating 16 | 5 8 15 25 On Entrance 8 | . 9 7 18 Naked Turns . | . . . . Heaviest Build 48 | 8 19 32 48 Greatest Support 40 | 40 40 40 40 Greatest Overweight (x) 6 | . . 6 1 Average Overweight (x) . | . . . . Largest Inventory Capacity 10 | 5 10 10 10 Average Capacity 9 | 5 6 10 10 Most Carried 10 | 1 6 10 10 Average Carried 8 | . 3 9 9 Final Capacity 10 | 5 10 10 10 Final Carried 10 | 1 6 10 5 Class Distribution -------------------- 79% | Mutant 20% | Skirmisher Dominant Class ---------------- Mutant | -10/Materials Mutant | -9/Materials Skirmisher | -8/Materials Resources | -11 -10 -9 -8 ----------- Run | Yrd Mat Mat Mat Matter Collected 1156 | 286 143 346 381 Remotely 124 | 100 24 . . Salvage Created 2167 | 102 317 1442 306 Parts 136 | 7 22 87 20 Haulers Intercepted 9 | . 2 6 1 Recyclers Shooed 1 | . 1 . . Parts Field Recycled . | . . . . Retrieved Matter . | . . . . Parts Self-Destructed . | . . . . Prevented . | . . . . Kills | -11 -10 -9 -8 ------- Run | Yrd Mat Mat Mat Combat Hostiles Destroyed 38 | . 7 24 7 Guns 10 | . 7 3 . Cannons 27 | . . 20 7 AOE 1 | . . 1 . Classes Destroyed 11 | 2 3 5 1 Worker 4 | . . 3 1 Tunneler 1 | 1 . . . Hauler 9 | . 2 6 1 Recycler 1 | 1 . . . Operator 1 | . . 1 . Watcher 6 | . . 4 2 Swarmer 6 | . 3 3 . Grunt 20 | . 4 12 4 Brawler 3 | . . 3 . Sentry 8 | . . 6 2 Hunter 1 | . . . 1 Best Kill Streak 9 | 2 3 9 3 Combat Bots Only 4 | . 3 4 2 Max Kills in Single Turn 3 | 1 2 3 1 Gunslinging 1 | . 1 . . Exploded 1 | . . 1 . Melee . | . . . . Uniques/NPCs Destroyed . | . . . . Combat | -11 -10 -9 -8 -------- Run | Yrd Mat Mat Mat Hostile Shots Fired 169 | . 31 56 82 Missed 44 | . 5 21 18 Hits 125 | . 26 35 64 Melee 1 | . . 1 . Projectile 124 | . 26 34 64 AOE 1 | . . . 1 Critical Strikes 7 | . . 1 6 Damage Taken 2449 | . 307 529 1613 Core 351 | . 38 60 253 Absorbed by Shields . | . . . . Core Remaining (%) 89 | 100 84 85 . Volleys Fired 154 | 4 35 71 44 Largest 2 | 2 2 2 2 Hottest 136 | 40 40 136 112 Shots Fired 307 | 8 70 141 88 Gun 126 | 8 70 44 4 Cannon 177 | . . 93 84 Launcher 4 | . . 4 . Special . | . . . . Kinetic 193 | 8 70 44 71 Thermal 110 | . . 93 17 Explosive 4 | . . 4 . Electromagnetic . | . . . . Robot Hit Streak 12 | 7 9 12 10 Robot Miss Streak 4 | . 4 2 4 Penetration Max . | . . . . Secondary Targets 1 | . 1 . . Max Gunslinging Chain 1 | . 1 . . Shots Hit Robots 187 | 7 44 90 46 Core Hits 86 | 3 19 45 19 Critical Kills 1 | . . 1 . Critical Parts Destroyed . | . . . . Critical Strikes 2 | . . 1 1 Meltdown 1 | . . 1 . Blast 1 | . . . 1 Melee Attacks . | . . . . Impact . | . . . . Slashing . | . . . . Piercing . | . . . . Sneak Attacks . | . . . . Combat Hostiles . | . . . . Follow-up Attacks . | . . . . Damage Inflicted 3425 | 71 480 1805 1069 Guns 908 | 71 480 290 67 Cannons 2286 | . . 1289 997 Explosions 193 | . . 193 . Melee . | . . . . Ramming 38 | . . 33 5 Kinetic 1737 | 71 480 290 896 Thermal 1457 | . . 1289 168 Explosive 193 | . . 193 . Electromagnetic . | . . . . Impact . | . . . . Slashing . | . . . . Piercing . | . . . . Highest Corruption . | . . . . Average Corruption . | . . . . Corruption Purged . | . . . . Corruption Blocked . | . . . . Overload Shots . | . . . . Overflow Damage 21 | . . 21 . Projectiles . | . . . . Explosions 21 | . . 21 . Melee . | . . . . Knockbacks 5 | . . . 5 Impact . | . . . . Kinetic 5 | . . . 5 Secondary . | . . . . Self-Inflicted Damage 94 | . . 26 68 Shots 2 | . . 1 1 Rammed 7 | . 1 5 1 Targets Rammed 9 | . 1 6 2 Kicked . | . . . . Crushed 2 | . . 1 1 Highest Temperature 207 | . 18 54 207 Average Temperature 43 | . 6 18 82 Received Heat Transfer 717 | . 144 195 378 Siege Activations . | . . . . Martial Activations . | . . . . Shielding Activations . | . . . . Robots Disrupted . | . . . . Combat Hostiles . | . . . . Robots Corrupted . | . . . . Combat Hostiles . | . . . . Parts Fried . | . . . . Impact Corruptions . | . . . . Robots Melted 1 | . . 1 . Combat Hostiles . | . . . . Parts Melted 5 | . . 5 . Heat Transferred 2664 | . . 2331 333 Parts Sabotaged . | . . . . Parts Stolen . | . . . . Parts Stripped . | . . . . Power Chain Reactions . | . . . . Alert | -11 -10 -9 -8 ------- Run | Yrd Mat Mat Mat Maximum Alert Level 1 | . . 1 . Low Security (%) 78 | 100 100 65 100 Level 1 21 | . . 34 . Level 2 . | . . . . Level 3 . | . . . . Level 4 . | . . . . Level 5 . | . . . . High Security . | . . . . Max Security . | . . . . Peak Influence 323 | 10 80 323 126 Initial 126 | . . . 126 Average 115 | 1 36 158 60 Influence Increases 1295 | 10 184 776 325 Destroy 0b10 Robot/C 760 | . 140 480 140 Destroy 0b10 Robot/NC 110 | 10 10 70 20 Destroy Leader 220 | . 34 140 46 Successful Hack 5 | . . . 5 Disable Machine 120 | . . 45 75 Destroy Structure 80 | . . 41 39 Influence Decreases 1264 | 10 184 476 594 Entered New Map 174 | . . . 174 Time Decay 970 | 10 174 456 330 Lost Part 120 | . 10 20 90 Squads Dispatched 3 | . . 1 2 Investigation 1 | . . 1 . Extermination . | . . . . Reinforcement 2 | . . . 2 Assault . | . . . . Garrison . | . . . . Intercept . | . . . . Searches Triggered . | . . . . Construction Impeded . | . . . . Haulers Reinforced . | . . . . Active Scanning Responses . | . . . . Cargo Convoy Interrupts . | . . . . Stealth | -11 -10 -9 -8 --------- Run | Yrd Mat Mat Mat Distress Signals 5 | . 2 2 1 Communications Jammed . | . . . . Distress Signals . | . . . . Times Spotted 65 | . 12 35 18 Peak Tracking Total 5 | . 3 5 5 Tactical Retreats . | . . . . Traps | -11 -10 -9 -8 ------- Run | Yrd Mat Mat Mat Traps Triggered 2 | . . 1 1 Indirectly . | . . . . Trap Hack Attempts . | . . . . Triggered . | . . . . Disarmed . | . . . . Reprogrammed . | . . . . Reused . | . . . . Traps Extracted . | . . . . Installed . | . . . . Triggered . | . . . . Machines | -11 -10 -9 -8 ---------- Run | Yrd Mat Mat Mat Machines Disabled 8 | . . 3 5 Max in Single Turn 2 | . . 1 2 Machines Repaired . | . . . . Machines Dismantled . | . . . . Machines Sabotaged . | . . . . Overloaded Fab Kills . | . . . . Hacking | -11 -10 -9 -8 --------- Run | Yrd Mat Mat Mat Machines Accessed 7 | . . 4 3 Terminals 7 | . . 4 3 Fabricators . | . . . . Repair Stations . | . . . . Recycling Units . | . . . . Scanalyzers . | . . . . Garrison Access . | . . . . Total Hacks 17 | . . 8 9 Successful 5 | . . 2 3 Failed 11 | . . 5 6 Catastrophic . | . . . . Database Lockouts 1 | . . 1 . Manual 7 | . . 7 . Terminals 17 | . . 8 9 Fabricators . | . . . . Repair Stations . | . . . . Recycling Units . | . . . . Scanalyzers . | . . . . Garrison Access . | . . . . Terminal Hacks 5 | . . 2 3 Robot Analysis 1 | . . 1 . Prototype ID Bank 3 | . . 1 2 Hauler Manifests 1 | . . . 1 Fabricator Hacks . | . . . . Repair Station Hacks . | . . . . Recycling Unit Hacks . | . . . . Scanalyzer . | . . . . Garrison Access Hacks . | . . . . Unauthorized Hacks . | . . . . Terminals . | . . . . Fabricators . | . . . . Repair Stations . | . . . . Recycling Units . | . . . . Scanalyzers . | . . . . Garrison Access . | . . . . Data Cores Recovered 1 | . . 1 . Used . | . . . . Hacking Detections 5 | . . 3 2 Full Trace Events 2 | . . 1 1 Feedback Events . | . . . . Feedback Blocked . | . . . . Robot Schematics Acquired . | . . . . Robots Built . | . . . . Authchips . | . . . . Time . | . . . . Total Robot Build Rating . | . . . . Part Schematics Acquired . | . . . . Parts Built . | . . . . Authchips . | . . . . Time . | . . . . Total Part Build Rating . | . . . . Parts Repaired . | . . . . Time . | . . . . Parts Recycled . | . . . . Recycled Matter . | . . . . Retrieved Matter . | . . . . Retrieved Components . | . . . . Parts Scanalyzed . | . . . . Part Schematics Acquired . | . . . . Parts Damaged . | . . . . Bothacking | -11 -10 -9 -8 ------------ Run | Yrd Mat Mat Mat Used RIF Installer . | . . . . Robots Hacked . | . . . . Non-combat . | . . . . Combat . | . . . . Robot Hacks Applied . | . . . . Relay Couplers Released . | . . . . Fabnet Peak Effective % . | . . . . Robots Rewired . | . . . . Allies Hacked . | . . . . Hacks Repelled . | . . . . Allies | -11 -10 -9 -8 -------- Run | Yrd Mat Mat Mat Total Allies . | . . . . Largest Group . | . . . . Highest-Rated Group . | . . . . Highest-Rated Ally . | . . . . Total Orders . | . . . . Ally Attacks . | . . . . Total Damage . | . . . . Kills . | . . . . Allies Corrupted . | . . . . Allies Melted . | . . . . Intel | -11 -10 -9 -8 ------- Run | Yrd Mat Mat Mat Active Infowar (turns) 3059 | 32 305 1927 795 Sensors 742 | . . . 742 Terrain 337 | 32 305 . . Structural 2683 | . . 1927 756 Robot Analysis Total 1 | . . 1 . Derelict Logs Recovered . | . . . . Drone Launches . | . . . . Drone Recoveries . | . . . . Exploration | -11 -10 -9 -8 ------------- Run | Yrd Mat Mat Mat Turns Passed 3449 | 111 428 2115 795 Spaces Moved 1603 | 64 197 984 358 Core 12 | 12 . . . Treads 1590 | 52 197 983 358 Legs . | . . . . Wheels . | . . . . Hover . | . . . . Flight 1 | . . 1 . Fastest Speed 50 | 50 160 160 160 Average Speed 163 | 139 160 160 175 Slowest Speed 480 | 160 160 480 240 Overloaded Moves . | . . . . Propulsion Burnouts . | . . . . Robots Hopped . | . . . . Potential Cave-ins . | . . . . Cave-ins Triggered . | . . . . Exploration Rate (%) 37 | 5 34 77 35 Regions Visited 3 Branch Regions . Pre-discovered Areas . | . . . . Known Exits Taken . | . . . . Unknown Exits Taken 3 | 1 1 1 . Scrap Searched . | . . . . Spaces Dug 13 | . . 12 1 Terrain Destroyed 93 | . . 48 45 Melee . | . . . . Projectile 14 | . . . 14 AOE 79 | . . 48 31 Terrain Rammed . | . . . . Walls Destroyed . | . . . . Machines Disabled . | . . . . Actions | -11 -10 -9 -8 --------- Run | Yrd Mat Mat Mat Total 2133 | 75 246 1379 433 Wait 277 | . 6 266 5 Move 1600 | 63 196 983 358 Hop . | . . . . Pick Up 20 | 1 5 12 2 Fast Attach 25 | 7 2 10 6 Attach 8 | . . 3 5 Detach 3 | . . 2 1 Swap 11 | . . 8 3 Drop 26 | . 1 18 7 Fire 154 | 4 35 71 44 Melee . | . . . . Ram . | . . . . Kick . | . . . . Crush 9 | . 1 6 2 Escape Stasis . | . . . . Rewire . | . . . . Trap . | . . . . Miscellaneous . | . . . . Route ------- -11/Scrapyard -10/Materials -9/Materials (discovered 4 exits: *Mat x2 / [*Min] / [*Sto]) -8/Materials History --------- Turn | Location | Event 6 | -11/Scrapyard | Discovered new exit (range 16) 112 | -11/Scrapyard | Entered Materials 303 | -10/Materials | Build established: Mutant 529 | -10/Materials | Discovered new exit (range 8) 540 | -10/Materials | Entered another Materials area 540 | -9/Materials | Evolved 2 slots: Utility x2 540 | -9/Materials | Discovered new exit (range 11) 1487 | -9/Materials | Discovered new exit (range 5) 1742 | -9/Materials | Discovered new exit (range 5) 2110 | -9/Materials | Discovered new exit (range 6) 2570 | -9/Materials | Central database locked down 2655 | -9/Materials | Entered another Materials area 2655 | -8/Materials | Evolved 2 slots: Utility x2 3020 | -8/Materials | Build established: Skirmisher 3450 | -8/Materials | Self-destructed Last Messages --------------- 03436_ U-05 Engineer lays Concrete. 03438_ Hvy. Deuterium Engine destroyed. 03438_ U-05 Engineer lays Concrete. 03438_ K-01 Serf collects debris. 03440_ U-05 Engineer lays Concrete. 03441_ K-01 Serf collects debris. 03442_ Penetrated by Slug. 03442_ Imp. Medium Laser destroyed. 03442_ U-05 Engineer lays Concrete. 03442_ Critical hit (Burn: +37). 03444_ U-05 Engineer lays Concrete. 03444_ Imp. Medium Laser destroyed. 03445_ U-05 Engineer lays Concrete. 03445_ K-01 Serf collects debris. 03446_ U-05 Engineer lays Concrete. 03448_ Slug penetrates Wall. 03448_ K-01 Serf collects debris. 03449_ U-05 Engineer lays Concrete. 03449_ Structural Scanner destroyed. 03450_ U-05 Engineer lays Concrete. Map ----- +----------------------------------------------------+ | ?????????????????????????????????????????????????? | | ?????????????????????????????????????????????????? | | ?????????????????????????????????????????????????? | | ?????????????????????????????????????????????????? | | ?????????????????????????????????????????????????? | | ???????????????????? ????????????????????????????? | | ?????????????????? ??????????????############?? | | ????????????????? ??????????????############?? | | ?????????????????## ##????????????## ##?? | | ?????????????????## # ????????????## ##?? | | ?????????????????## # ????????????## ##?? | | ?????????????????## # ????????????## #### | | ?????????????????#; %# ????????????## #### | | ?????????????????## %%+ ????????????## #### | | ????????????????### ^^# ????????????## + | | ???????????????#### H%# ??????????### #### | | ???????????????###; %g################ #### | | ???????????????### g %###################+####### | | ??????????????#### ! [ %% + | | ??????????????#### =%= ###### | | ?????????????### w [[ = * ###### | | ?????????????### ##+#############+#####??## | | ?????????????## # # ##### ###??## | | ?????????????## !##????? ??????## | | ?????????????### % """ ##???? ?????## | | ?????????????## @ """ !##???? ! ##???## | | ?????????????## u % """ ##??? ##???## | | ?????????????### #% ##?## ##???## | | ?????????????### k #########?##########???## | | ??????????????### %==#########?##########???## | | ??????????????### ==##?????????????????????## | | ???????????????## ##?????????????????????## | | ??????????????? ###/#######??????????????????????? | | ??????????????? ###h#######??????????????????????? | | ????????????????### ?????????????????????????????? | | ?????????????????## ?????????????????????????????? | | ????????????????? ?????????????????????????????? | | ?????????????????? ????????????????????????????? | | ?????????????????? ???????????????????????????? | | ??????????????????+###???????????????????????????? | | ?????????????????? #???????????????????????????? | | ?????????????????????????????????????????????????? | | ?????????????????????????????????????????????????? | | ?????????????????????????????????????????????????? | | ?????????????????????????????????????????????????? | | ?????????????????????????????????????????????????? | | ?????????????????????????????????????????????##### | | ????????????????????????????????????????????? #### | | ????????????????????????????????????????????? # | | ????????????????????????????????????????????? # | +----------------------------------------------------+ Best States ------------- Heat Dissipation 53 Coolant Potential 65 Energy Generation 18 Energy Capacity 310 Matter Stores 300 Matter Capacity 300 Sight Range 16 Robot Scan Range 15 Terrain Scan Range 16 Terrain Scan Density 10 Armor Coverage 600 Evasion (%) 40 Recoil Reduction 2 Item Schematics ----------------- None Robot Schematics ------------------ None Fabricated ------------ Nothing Repaired ---------- Nothing Alien Tech Used ----------------- None Achievements -------------- None Challenges ------------ None Game ------ Seed SapperFusionDriver Manual? 0 Play Time 00:24:57 Cumulative 66.3 hours Start 2025.05.30 @ 18:16:15 End 2025.05.30 @ 18:38:00 Sessions 1 Manual Loads 0 Difficulty Rogue Special Mode None Game No. 93 Rogue 93 Adventurer 0 Explorer 0 Win Type - Total 1 Types 1/0/0/0/0/0/0/0/0/0 Lore% 32 Gallery% 39 Achievement% 37 Wizard Run 0 Options --------- Layout 1 ASCII 0 Keyboard 1 Movement Numpad Keybinds 0 Fullscreen 1 Font 32/Smallcaps Map View 50x35 Zoom Use 0% Tactical HUD 1 Map Filters NONE Filters NONE Steam 1 RUN: 9eb26ab3-3a26-4a93-b55f-39bfa48c945e